bitfinex/quotes_BTCUSD_20241003
["timestamp","ask_amount","ask_price","bid_price","bid_amount"]
[1727982040394,0.04377281,60835.0,60834.0,0.16637612]
[1727982041276,0.03577281,60835.0,60834.0,0.00199512]
[1727982041549,0.02577281,60835.0,60834.0,0.00199512]
[1727982041765,0.19115181,60835.0,60834.0,0.00299512]
[1727982041962,0.02677281,60835.0,60834.0,0.00299512]
[1727982042187,0.02677281,60835.0,60834.0,0.16737612]
[1727982042443,0.02777281,60835.0,60834.0,0.24566348]
[1727982042666,0.02977281,60835.0,60834.0,0.33567612]
[1727982043308,0.02777281,60835.0,60834.0,0.33567612]
[1727982043518,0.02577281,60835.0,60834.0,0.33667612]
[1727982043937,0.02577281,60835.0,60834.0,0.17229512]
[1727982044174,0.19015181,60835.0,60834.0,0.00299512]
[1727982044391,0.28917257,60835.0,60834.0,0.00299512]
[1727982044601,0.28917257,60835.0,60834.0,0.00199512]
[1727982045096,0.28917257,60835.0,60834.0,0.00299512]
[1727982045525,0.28917257,60835.0,60834.0,0.00199512]
[1727982045734,0.28917257,60835.0,60834.0,0.00299512]
[1727982046379,0.26339976,60835.0,60834.0,0.00199512]
[1727982046603,0.26339976,60835.0,60834.0,0.00299512]
[1727982047268,0.26239976,60835.0,60834.0,0.00299512]
[1727982047506,0.26239976,60835.0,60834.0,0.00599512]
[1727982049492,0.28817023,60835.0,60834.0,0.00599512]
[1727982050169,0.164379,60835.0,60834.0,0.00599512]
[1727982050636,0.164374,60837.0,60834.0,0.00599512]
[1727982050861,0.164376,60836.0,60834.0,0.00599512]
[1727982051328,0.164376,60836.0,60835.0,0.18720694]
[1727982053792,0.001,60836.0,60835.0,0.18720694]
[1727982054020,0.001,60836.0,60835.0,0.35158594]
[1727982054266,0.001,60836.0,60835.0,0.18720694]
[1727982054732,0.02676864,60836.0,60835.0,0.18720694]
[1727982055415,0.02676864,60836.0,60835.0,0.35158594]
[1727982055865,0.02676864,60836.0,60835.0,0.18720694]
[1727982056946,0.02676864,60836.0,60835.0,0.35158594]
[1727982057708,0.02676864,60836.0,60835.0,0.18720694]
[1727982058625,0.02676864,60836.0,60835.0,0.35158594]
[1727982059565,0.02676864,60836.0,60835.0,0.44648594]
[1727982059781,0.02676864,60836.0,60835.0,0.52728594]
[1727982060755,0.02676864,60836.0,60835.0,0.36290694]
[1727982061268,0.02676864,60836.0,60835.0,0.52728594]
[1727982061568,0.001638,60838.0,60835.0,0.46829365]
[1727982061785,0.000819,60847.0,60846.0,0.35155594]
[1727982062004,0.000819,60847.0,60846.0,0.52905594]
[1727982063397,0.001819,60847.0,60846.0,0.001]
[1727982063635,0.166165,60847.0,60846.0,0.001]
[1727982064104,0.167165,60847.0,60846.0,0.002]
[1727982064320,0.166165,60847.0,60846.0,0.001]
[1727982064557,0.16435,60846.0,60842.0,0.35156494]
[1727982064778,0.35727854,60847.0,60846.0,0.002]
[1727982065004,0.52162454,60847.0,60846.0,0.002]
[1727982065460,0.164353,60845.0,60842.0,0.35156594]
[1727982065683,0.328701,60846.0,60842.0,0.18720694]
[1727982065900,0.164357,60843.0,60842.0,0.18720694]
[1727982066130,0.164352,60845.0,60842.0,0.35156594]
[1727982067692,0.165352,60845.0,60842.0,0.35156594]
[1727982068194,0.09680501,60844.0,60838.0,0.18720694]
[1727982068427,0.16437,60838.0,60837.0,0.001638]
[1727982069588,0.164366,60840.0,60837.0,0.001638]
[1727982070252,0.164367,60840.0,60837.0,0.001638]
[1727982070511,0.164368,60839.0,60837.0,0.001638]
[1727982071441,0.16437,60838.0,60837.0,0.001638]
[1727982071675,0.16437,60839.0,60837.0,0.001638]
[1727982071902,0.001,60838.0,60837.0,0.003638]
[1727982072131,0.16537,60838.0,60837.0,0.003638]
[1727982072590,0.16437,60838.0,60837.0,0.001638]
[1727982072817,0.16537,60838.0,60837.0,0.004638]
[1727982073287,0.26298547,60838.0,60837.0,0.004638]
[1727982073518,0.28775375,60838.0,60837.0,0.003638]
[1727982073731,0.28775375,60838.0,60837.0,0.004638]
[1727982073732,0.28875375,60838.0,60837.0,0.004638]
[1727982074163,0.28875375,60838.0,60837.0,0.002638]
[1727982074589,0.28975375,60838.0,60837.0,0.004638]
[1727982076642,0.26398547,60838.0,60837.0,0.004638]
[1727982077430,0.002,60838.0,60837.0,0.249811]
[1727982077669,0.002,60838.0,60837.0,0.25109802]
[1727982077670,0.001,60838.0,60837.0,0.25109802]
[1727982077910,0.001,60838.0,60837.0,0.25309802]
[1727982078141,0.001,60838.0,60837.0,0.25509802]
[1727982078367,0.100819,60847.0,60845.0,0.164351]
[1727982078583,0.265165,60847.0,60846.0,0.18720694]
[1727982078796,0.100819,60847.0,60846.0,0.18720694]
[1727982079041,0.100819,60847.0,60846.0,0.35155594]
[1727982079266,0.000819,60847.0,60846.0,0.35155594]
[1727982079765,0.003819,60847.0,60846.0,0.35155594]
[1727982079989,0.02958212,60847.0,60846.0,0.35155594]
[1727982080278,0.003819,60847.0,60846.0,0.35355594]
[1727982080523,0.003819,60847.0,60846.0,0.35155594]
[1727982080777,0.008819,60847.0,60846.0,0.35155594]
[1727982081240,0.003819,60847.0,60846.0,0.35155594]
[1727982081480,0.000819,60847.0,60846.0,0.35155594]
[1727982082214,0.000819,60847.0,60846.0,0.001]
[1727982082474,0.26156483,60847.0,60846.0,0.001]
[1727982082969,0.36156483,60847.0,60846.0,0.001]
[1727982083995,0.36456483,60847.0,60846.0,0.001]
[1727982084469,0.164365,60840.0,60839.0,0.24668821]
[1727982084964,0.16437,60838.0,60837.0,0.001638]
[1727982085445,0.26198547,60838.0,60837.0,0.001638]
[1727982086167,0.28775384,60838.0,60837.0,0.001638]
[1727982087090,0.26198547,60838.0,60837.0,0.001638]
[1727982087570,0.26298547,60838.0,60837.0,0.006638]
[1727982088036,0.26198547,60838.0,60837.0,0.001638]
[1727982088269,0.26298547,60838.0,60837.0,0.002638]
[1727982088722,0.26298547,60838.0,60837.0,0.003638]
[1727982089907,0.26298547,60838.0,60837.0,0.002638]
[1727982090350,0.0267685,60838.0,60837.0,0.003638]
[1727982091040,0.1919575,60838.0,60837.0,0.003638]
[1727982095881,0.1919575,60838.0,60837.0,0.003638]
[1727982096567,0.166189,60838.0,60837.0,0.003638]
[1727982099032,0.001819,60838.0,60837.0,0.003638]
[1727982099268,0.001819,60838.0,60837.0,0.246111]
[1727982099489,0.001819,60838.0,60837.0,0.269111]
[1727982099705,0.001819,60838.0,60837.0,0.364111]
[1727982100168,0.001819,60838.0,60837.0,0.366111]
[1727982100387,0.001819,60838.0,60837.0,0.52829771]
[1727982100635,0.002819,60838.0,60837.0,0.53429771]
[1727982101360,0.001819,60838.0,60837.0,0.53329771]
[1727982101579,0.002819,60838.0,60837.0,0.53829771]
[1727982101807,0.001819,60838.0,60837.0,0.53329771]
[1727982102249,0.001819,60838.0,60837.0,0.53229771]
[1727982102936,0.002819,60838.0,60837.0,0.54029771]
[1727982104304,0.002819,60838.0,60837.0,0.54574172]
[1727982104534,0.002819,60838.0,60837.0,0.54374172]
[1727982105644,0.002819,60838.0,60837.0,0.179011]
[1727982106631,0.002819,60838.0,60837.0,0.006638]
[1727982106632,0.001819,60838.0,60837.0,0.006638]
[1727982106857,0.002819,60838.0,60837.0,0.013638]
[1727982107336,0.002819,60838.0,60837.0,0.178011]
[1727982107785,0.001819,60838.0,60837.0,0.173011]
[1727982108257,0.002819,60838.0,60837.0,0.178011]
[1727982108470,0.002819,60838.0,60837.0,0.173011]
[1727982108688,0.001819,60838.0,60837.0,0.170011]
[1727982109173,0.000819,60838.0,60837.0,0.167011]
[1727982109412,0.02658495,60838.0,60837.0,0.167011]
[1727982109630,0.02758495,60838.0,60837.0,0.171011]
[1727982109842,0.02758495,60838.0,60837.0,0.174011]
[1727982110739,0.001819,60838.0,60837.0,0.174011]
[1727982110970,0.002819,60838.0,60837.0,0.179011]
[1727982111190,0.001819,60838.0,60837.0,0.169011]
[1727982111681,0.002819,60838.0,60837.0,0.171011]
[1727982111901,0.001819,60838.0,60837.0,0.166011]
[1727982112138,0.002819,60838.0,60837.0,0.174011]
[1727982112663,0.002819,60838.0,60837.0,0.171011]
[1727982112889,0.003819,60838.0,60837.0,0.178011]
[1727982113398,0.003819,60838.0,60837.0,0.013638]
[1727982113399,0.168189,60838.0,60837.0,0.013638]
[1727982115278,0.19395649,60838.0,60837.0,0.013638]
[1727982115765,0.29157196,60838.0,60837.0,0.013638]
[1727982116466,0.003819,60838.0,60837.0,0.178011]
[1727982117435,0.001819,60838.0,60837.0,0.173011]
[1727982117659,0.001819,60838.0,60837.0,0.180011]
[1727982117660,0.002819,60838.0,60837.0,0.180011]
[1727982118362,0.001819,60838.0,60837.0,0.173011]
[1727982118583,0.002819,60838.0,60837.0,0.260811]
[1727982119096,0.002819,60838.0,60837.0,0.45228452]
[1727982119348,0.002819,60838.0,60837.0,0.44899771]
[1727982119586,0.002819,60838.0,60837.0,0.44699771]
[1727982120048,0.001819,60838.0,60837.0,0.44199771]
[1727982120294,0.000819,60847.0,60846.0,0.187349]
[1727982120538,0.000819,60847.0,60846.0,0.37455594]
[1727982120767,0.000819,60847.0,60846.0,0.37655594]
[1727982120983,0.000819,60847.0,60846.0,0.187349]
[1727982121236,0.000819,60847.0,60846.0,0.35155594]
[1727982121937,0.000819,60847.0,60846.0,0.014]
[1727982121938,0.001819,60847.0,60846.0,0.014]
[1727982122171,0.001819,60847.0,60844.0,0.328707]
[1727982122172,0.001819,60847.0,60844.0,0.164354]
[1727982122387,0.001819,60847.0,60842.0,0.328718]
[1727982122388,0.168166,60847.0,60846.0,0.022]
[1727982122842,0.26456483,60847.0,60846.0,0.022]
[1727982123070,0.26356483,60847.0,60846.0,0.012]
[1727982123301,0.34476483,60847.0,60846.0,0.017]
[1727982123528,0.36853028,60847.0,60846.0,0.005]
[1727982123750,0.44246921,60847.0,60846.0,0.005]
[1727982123978,0.44246921,60847.0,60846.0,0.014]
[1727982123979,0.44346921,60847.0,60846.0,0.014]
[1727982124247,0.46811552,60847.0,60846.0,0.005]
[1727982124476,0.32873,60841.0,60837.0,0.001638]
[1727982124722,0.164366,60840.0,60837.0,0.001638]
[1727982125157,0.164368,60839.0,60837.0,0.001638]
[1727982125851,0.26191793,60838.0,60837.0,0.001638]
[1727982126309,0.26191793,60838.0,60837.0,0.004638]
[1727982126555,0.09754793,60838.0,60837.0,0.004638]
[1727982126821,0.26191793,60838.0,60837.0,0.004638]
[1727982127057,0.26191793,60838.0,60837.0,0.007638]
[1727982127290,0.26191793,60838.0,60837.0,0.004638]
[1727982127537,0.26191793,60838.0,60837.0,0.006638]
[1727982127762,0.26191793,60838.0,60837.0,0.005638]
[1727982128205,0.26191793,60838.0,60837.0,0.003638]
[1727982128426,0.328729,60841.0,60837.0,0.003638]
[1727982128659,0.07395855,60843.0,60837.0,0.003638]
[1727982128660,0.0493057,60843.0,60840.0,0.164364]
[1727982128896,0.55742705,60843.0,60840.0,0.164365]
[1727982129121,0.26143314,60843.0,60840.0,0.164365]
[1727982129422,0.0493057,60844.0,60840.0,0.328728]
[1727982129642,0.0493057,60844.0,60837.0,0.004638]
[1727982129643,0.0493057,60846.0,60843.0,0.35156394]
[1727982129851,0.0493057,60846.0,60843.0,0.18720694]
[1727982130059,0.164349,60846.0,60843.0,0.18720694]
[1727982130512,0.14672711,60847.0,60843.0,0.18720694]
[1727982130513,0.000819,60847.0,60843.0,0.18720694]
[1727982130739,0.000819,60847.0,60846.0,0.164349]
[1727982132390,0.001819,60847.0,60846.0,0.164349]
[1727982132869,0.001819,60847.0,60846.0,0.286349]
[1727982133581,0.24668821,60864.0,60852.0,0.002]
[1727982133819,0.24668821,60864.0,60863.0,0.35150994]
[1727982134250,0.24668821,60871.0,60863.0,0.35150994]
[1727982134251,0.24668821,60871.0,60863.0,0.18720694]
[1727982134538,0.24668821,60871.0,60869.0,0.18720694]
[1727982134782,0.164284,60870.0,60869.0,0.18720694]
[1727982134992,0.1900386,60870.0,60869.0,0.18720694]
[1727982135211,0.0257546,60870.0,60869.0,0.18720694]
[1727982135455,0.1900386,60870.0,60869.0,0.18720694]
[1727982135697,0.0257546,60870.0,60869.0,0.18720694]
[1727982136191,0.0257546,60870.0,60865.0,0.18720694]
[1727982136431,0.328576,60869.0,60864.0,0.164298]
[1727982136669,0.331567,60871.0,60861.0,0.51581994]
[1727982136670,0.09656473,60871.0,60863.0,0.329603]
[1727982136904,0.09663221,60871.0,60869.0,0.35149394]
[1727982137163,0.09663221,60871.0,60869.0,0.18720694]
[1727982137406,0.09663221,60871.0,60869.0,0.18820694]
[1727982137629,0.26091321,60871.0,60869.0,0.18820694]
[1727982137872,0.003,60871.0,60869.0,0.18820694]
[1727982138122,0.003,60871.0,60869.0,0.35249194]
[1727982138123,0.001,60871.0,60869.0,0.35249194]
[1727982138356,0.001,60871.0,60869.0,0.18820694]
[1727982138594,0.001,60871.0,60870.0,0.164284]
[1727982139303,0.164277,60873.0,60870.0,0.164284]
[1727982139580,0.02575406,60871.0,60869.0,0.51677994]
[1727982139816,0.02575406,60871.0,60870.0,0.164284]
[1727982140284,0.02575406,60871.0,60870.0,0.166284]
[1727982140543,0.328539,60876.0,60870.0,0.164284]
[1727982140796,0.100819,60877.0,60874.0,0.164272]
[1727982141029,0.265085,60877.0,60874.0,0.164273]
[1727982141277,0.265085,60877.0,60873.0,0.18720694]
[1727982141278,0.16427,60876.0,60873.0,0.35148194]
[1727982141520,0.164273,60874.0,60873.0,0.18720694]
[1727982141758,0.164284,60870.0,60869.0,0.001]
[1727982141997,0.25757882,60870.0,60869.0,0.001]
[1727982142781,0.25757882,60870.0,60859.0,0.164313]
[1727982142782,0.164305,60863.0,60859.0,0.164313]
[1727982143014,0.09396963,60869.0,60857.0,0.328636]
[1727982143261,0.164304,60863.0,60859.0,0.164312]
[1727982143503,0.19006157,60863.0,60859.0,0.164312]
[1727982143749,0.02575757,60863.0,60861.0,0.328617]
[1727982143984,0.02575757,60863.0,60862.0,0.164306]
[1727982144953,0.02675757,60863.0,60862.0,0.164306]
[1727982145407,0.02575757,60863.0,60862.0,0.164306]
[1727982145644,0.02675757,60863.0,60862.0,0.164306]
[1727982146104,0.02675757,60863.0,60860.0,0.18720694]
[1727982146330,0.493913,60863.0,60860.0,0.18720694]
[1727982146554,0.001,60863.0,60860.0,0.18720694]
[1727982146775,0.165304,60863.0,60860.0,0.35151794]
[1727982146995,0.164304,60863.0,60860.0,0.35151794]
[1727982147228,0.165304,60863.0,60860.0,0.35151794]
[1727982147710,0.34106277,60862.0,60856.0,0.18720694]
[1727982147920,0.164325,60855.0,60853.0,0.24668821]
[1727982148372,0.164322,60856.0,60853.0,0.16433]
[1727982148853,0.328636,60858.0,60844.0,0.18720694]
[1727982148854,0.09531956,60855.0,60844.0,0.18720694]
[1727982149090,0.09531956,60855.0,60847.0,0.41103321]
[1727982149091,0.328667,60852.0,60847.0,0.41103321]
[1727982149288,0.328667,60852.0,60848.0,0.164342]
[1727982149289,0.164334,60852.0,60848.0,0.164342]
[1727982149563,0.02576114,60851.0,60848.0,0.164342]
[1727982149798,0.19009714,60851.0,60848.0,0.164343]
[1727982150044,0.02576114,60851.0,60844.0,0.52091494]
[1727982150296,0.02576114,60851.0,60850.0,0.164338]
[1727982151258,0.02676114,60851.0,60850.0,0.164338]
[1727982151742,0.02576114,60851.0,60850.0,0.164338]
[1727982152244,0.02676114,60851.0,60850.0,0.171338]
[1727982152729,0.02676114,60851.0,60850.0,0.179338]
[1727982152962,0.15066965,60857.0,60853.0,0.35153494]
[1727982153728,0.0806,60861.0,60853.0,0.18720694]
[1727982153984,0.24668821,60855.0,60847.0,0.001638]
[1727982154253,0.164343,60848.0,60847.0,0.001638]
[1727982154508,0.34170778,60848.0,60847.0,0.001638]
[1727982155261,0.36747462,60848.0,60847.0,0.002638]
[1727982155987,0.37347462,60848.0,60847.0,0.003638]
[1727982156429,0.37347462,60848.0,60847.0,0.002638]
[1727982156650,0.38247462,60848.0,60847.0,0.003638]
[1727982162119,0.70339599,60848.0,60847.0,0.003638]
[1727982162342,0.45670778,60848.0,60847.0,0.003638]
[1727982163019,0.50584014,60848.0,60847.0,0.003638]
[1727982163240,0.45670778,60848.0,60847.0,0.003638]
[1727982169679,0.48247652,60848.0,60847.0,0.003638]
[1727982172465,0.69475894,60848.0,60847.0,0.003638]
[1727982172728,0.57797652,60848.0,60847.0,0.003638]
[1727982173164,0.56897652,60848.0,60847.0,0.002638]
[1727982173380,0.61805448,60848.0,60847.0,0.002638]
[1727982173605,0.62905448,60848.0,60847.0,0.003638]
[1727982173823,0.55420778,60848.0,60847.0,0.003638]
[1727982175125,0.54820778,60848.0,60847.0,0.002638]
[1727982175388,0.53520778,60848.0,60847.0,0.001638]
[1727982175606,0.46970778,60848.0,60847.0,0.002638]
[1727982175848,0.38860778,60848.0,60847.0,0.002638]
[1727982176053,0.36060778,60848.0,60847.0,0.001638]
[1727982176473,0.38560778,60848.0,60847.0,0.001638]
[1727982176746,0.41137543,60848.0,60847.0,0.001638]
[1727982176964,0.36060778,60848.0,60847.0,0.001638]
[1727982177181,0.36760778,60848.0,60847.0,0.001638]
[1727982178744,0.37560778,60848.0,60847.0,0.002638]
[1727982178954,0.36860778,60848.0,60847.0,0.002638]
[1727982179163,0.36260778,60848.0,60847.0,0.001638]
[1727982179404,0.36660778,60848.0,60847.0,0.001638]
[1727982180551,0.39237514,60848.0,60847.0,0.001638]
[1727982181224,0.49137514,60848.0,60847.0,0.001638]
[1727982181899,0.56657514,60848.0,60847.0,0.001638]
[1727982182119,0.74689347,60848.0,60847.0,0.001638]
[1727982182321,0.61512923,60848.0,60847.0,0.001638]
[1727982182538,0.66418651,60848.0,60847.0,0.001638]
[1727982182749,0.61512923,60848.0,60847.0,0.001638]
[1727982182961,0.61312923,60848.0,60847.0,0.001638]
[1727982183198,0.79633617,60848.0,60847.0,0.001638]
[1727982183391,0.81233617,60848.0,60847.0,0.001638]
[1727982183648,0.81233617,60848.0,60847.0,0.002638]
[1727982183649,0.87539345,60848.0,60847.0,0.002638]
[1727982184035,0.86139345,60848.0,60847.0,0.001638]
[1727982184273,0.84962609,60848.0,60847.0,0.002638]
[1727982184523,0.8733964,60848.0,60847.0,0.002638]
[1727982184750,0.81033912,60848.0,60847.0,0.002638]
[1727982184934,0.85942989,60848.0,60847.0,0.002638]
[1727982185161,0.87342989,60848.0,60847.0,0.002638]
[1727982185650,0.81033912,60848.0,60847.0,0.002638]
[1727982185897,0.85943935,60848.0,60847.0,0.001638]
[1727982186125,0.88392504,60848.0,60847.0,0.001638]
[1727982186583,0.81033912,60848.0,60847.0,0.001638]
[1727982186798,0.82633912,60848.0,60847.0,0.001638]
[1727982187476,0.93845368,60848.0,60847.0,0.001638]
[1727982187778,0.93645368,60848.0,60847.0,0.001638]
[1727982187965,0.83833912,60848.0,60847.0,0.001638]
[1727982188273,0.82433912,60848.0,60847.0,0.001638]
[1727982188525,0.91203449,60848.0,60847.0,0.001638]
[1727982189634,0.83833912,60848.0,60847.0,0.001638]
[1727982190103,0.91206461,60848.0,60847.0,0.001638]
[1727982190358,1.16075283,60848.0,60847.0,0.001638]
[1727982190572,0.81456881,60848.0,60847.0,0.001638]
[1727982190805,0.96001981,60848.0,60847.0,0.001638]
[1727982191461,0.96201981,60848.0,60847.0,0.001638]
[1727982192180,0.96211045,60848.0,60847.0,0.001638]
[1727982192605,0.81456881,60848.0,60847.0,0.001638]
[1727982193496,0.96018948,60848.0,60847.0,0.001638]
[1727982193719,0.47693242,60848.0,60847.0,0.001638]
[1727982194196,0.59993925,60848.0,60847.0,0.001638]
[1727982194407,0.58593925,60848.0,60847.0,0.001638]
[1727982194597,0.44893242,60848.0,60847.0,0.001638]
[1727982195101,0.46293242,60848.0,60847.0,0.001638]
[1727982195320,0.44893242,60848.0,60847.0,0.001638]
[1727982195560,0.46293242,60848.0,60847.0,0.001638]
[1727982196044,0.44893242,60848.0,60847.0,0.001638]
[1727982196271,0.43716187,60848.0,60847.0,0.001638]
[1727982197391,0.42316187,60848.0,60847.0,0.001638]
[1727982198039,0.43716187,60848.0,60847.0,0.001638]
[1727982198425,0.58478254,60848.0,60847.0,0.001638]
[1727982198687,0.43716187,60848.0,60847.0,0.001638]
[1727982201137,0.33716187,60848.0,60847.0,0.001638]
[1727982201361,0.36257964,60848.0,60847.0,0.081438]
[1727982201579,0.28860778,60848.0,60847.0,0.081438]
[1727982202034,0.27460778,60848.0,60847.0,0.081438]
[1727982202254,0.26060778,60848.0,60847.0,0.081438]
[1727982202770,0.003,60848.0,60847.0,0.343784]
[1727982203222,0.24668821,60855.0,60854.0,0.164327]
[1727982203487,0.24668821,60855.0,60854.0,0.266527]
[1727982203713,0.000819,60857.0,60856.0,0.164322]
[1727982205428,0.001819,60857.0,60856.0,0.164322]
[1727982206163,0.001819,60857.0,60856.0,0.245522]
[1727982206414,0.001819,60857.0,60856.0,0.336622]
[1727982206899,0.24668821,60869.0,60868.0,0.335789]
[1727982207341,0.24668821,60869.0,60868.0,0.1715]
[1727982207564,0.000819,60870.0,60868.0,0.1715]
[1727982207788,0.000819,60870.0,60868.0,0.335788]
[1727982208450,0.001,60869.0,60868.0,0.335788]
[1727982208674,0.2586493,60869.0,60868.0,0.0797]
[1727982209587,0.328585,60867.0,60863.0,0.0793]
[1727982209837,0.1201184,60869.0,60858.0,0.0793]
[1727982209838,0.164311,60860.0,60858.0,0.0793]
[1727982210986,0.16431,60861.0,60858.0,0.0793]
[1727982211253,0.25895454,60861.0,60858.0,0.0843]
[1727982211483,0.14768632,60887.0,60859.0,0.51583394]
[1727982211666,0.328594,60866.0,60861.0,0.164307]
[1727982211926,0.164298,60865.0,60861.0,0.164307]
[1727982212577,0.328606,60863.0,60858.0,0.0793]
[1727982212788,0.164318,60858.0,60855.0,0.0944]
[1727982213252,0.164318,60858.0,60855.0,0.258724]
[1727982214156,0.164314,60859.0,60855.0,0.258724]
[1727982214395,0.001,60858.0,60855.0,0.258724]
[1727982214829,0.001,60858.0,60855.0,0.0944]
[1727982215059,0.001,60858.0,60855.0,0.002]
[1727982215060,0.164322,60856.0,60855.0,0.002]
[1727982215273,0.001,60861.0,60855.0,0.002]
[1727982215274,0.16432,60857.0,60855.0,0.002]
[1727982215502,0.164315,60859.0,60855.0,0.166323]
[1727982215728,0.16432,60857.0,60855.0,0.002]
[1727982215959,0.42376203,60856.0,60853.0,0.0798]
[1727982216178,0.09511703,60856.0,60849.0,0.0975]
[1727982216410,0.16433,60854.0,60850.0,0.164337]
[1727982216646,0.42431912,60853.0,60847.0,0.080138]
[1727982217088,0.164339,60850.0,60847.0,0.080138]
[1727982217349,0.328643,60857.0,60847.0,0.080138]
[1727982217350,0.164343,60848.0,60847.0,0.080138]
[1727982217623,0.26060778,60848.0,60847.0,0.001638]
[1727982219021,0.26160778,60848.0,60847.0,0.003638]
[1727982219448,0.28737349,60848.0,60847.0,0.003638]
[1727982220398,0.26160778,60848.0,60847.0,0.003638]
[1727982220620,0.26060778,60848.0,60847.0,0.003638]
[1727982220876,0.26360778,60848.0,60847.0,0.001638]
[1727982221123,0.26560778,60848.0,60847.0,0.002638]
[1727982221571,0.26460778,60848.0,60847.0,0.001638]
[1727982221806,0.26960778,60848.0,60847.0,0.002638]
[1727982222028,0.27160778,60848.0,60847.0,0.002638]
[1727982222272,0.26060778,60848.0,60847.0,0.001638]
[1727982222730,0.26860778,60848.0,60847.0,0.002638]
[1727982223161,0.10426478,60848.0,60847.0,0.002638]
[1727982223388,0.29437301,60848.0,60847.0,0.002638]
[1727982223827,0.28637301,60848.0,60847.0,0.001638]
[1727982224102,0.12703001,60848.0,60847.0,0.001638]
[1727982224346,0.12703001,60848.0,60847.0,0.248584]
[1727982224347,0.03776523,60848.0,60847.0,0.248584]
[1727982224595,0.03776523,60848.0,60847.0,0.344784]
[1727982224824,0.03576523,60848.0,60847.0,0.343784]
[1727982225061,0.03176523,60848.0,60847.0,0.344784]
[1727982225304,0.03576523,60848.0,60847.0,0.344784]
[1727982225529,0.02976523,60848.0,60847.0,0.343784]
[1727982225961,0.03176523,60848.0,60847.0,0.343784]
[1727982226409,0.006,60848.0,60847.0,0.343784]
[1727982226774,0.006,60848.0,60847.0,0.33648975]
[1727982229344,0.006,60848.0,60841.0,0.328722]
[1727982229568,0.006,60848.0,60844.0,0.164353]
[1727982229569,0.164347,60847.0,60844.0,0.164353]
[1727982230020,0.164347,60847.0,60838.0,0.0756]
[1727982230021,0.09653489,60846.0,60838.0,0.0756]
[1727982230250,0.09653489,60847.0,60840.0,0.18884494]
[1727982230466,0.09653489,60847.0,60843.0,0.328712]
[1727982230709,0.09653489,60847.0,60845.0,0.164351]
[1727982230918,0.26088389,60847.0,60844.0,0.164353]
[1727982231148,0.328698,60846.0,60840.0,0.19184494]
[1727982231360,0.16435,60846.0,60843.0,0.164357]
[1727982231570,0.164352,60845.0,60842.0,0.164358]
[1727982232005,0.09653489,60847.0,60841.0,0.328725]
[1727982232214,0.164352,60845.0,60842.0,0.164358]
[1727982232645,0.09653489,60847.0,60842.0,0.328716]
[1727982232863,0.164353,60845.0,60842.0,0.16436]
[1727982233576,0.164353,60845.0,60842.0,0.16536]
[1727982233777,0.02576558,60845.0,60843.0,0.164355]
[1727982233994,0.02576558,60845.0,60842.0,0.001]
[1727982234217,0.02576558,60845.0,60844.0,0.164354]
[1727982234547,0.02576558,60845.0,60843.0,0.164355]
[1727982234884,0.02576558,60845.0,60840.0,0.001638]
[1727982235112,0.19011758,60845.0,60843.0,0.001]
[1727982236277,0.164352,60845.0,60842.0,0.164359]
[1727982236523,0.1,60849.0,60841.0,0.328723]
[1727982236740,0.16435,60846.0,60843.0,0.164357]
[1727982237251,0.164354,60844.0,60843.0,0.001636]
[1727982237477,0.328703,60846.0,60843.0,0.002636]
[1727982237704,0.164353,60845.0,60843.0,0.002636]
[1727982237934,0.164352,60845.0,60843.0,0.001636]
[1727982238156,0.164354,60844.0,60843.0,0.001636]
[1727982240454,0.164354,60844.0,60843.0,0.002636]
[1727982240676,0.50784722,60844.0,60843.0,0.002636]
[1727982240893,0.43975901,60844.0,60843.0,0.002636]
[1727982242353,0.43975901,60844.0,60843.0,0.001636]
[1727982242810,0.44275901,60844.0,60843.0,0.001636]
[1727982243060,0.44475901,60844.0,60843.0,0.001636]
[1727982243571,0.44775901,60844.0,60843.0,0.002636]
[1727982243811,0.49693682,60844.0,60843.0,0.002636]
[1727982244037,0.52951947,60844.0,60843.0,0.002636]
[1727982244259,0.57008195,60844.0,60843.0,0.001636]
[1727982244945,0.59585298,60844.0,60843.0,0.001636]
[1727982245626,0.62945064,60844.0,60843.0,0.001636]
[1727982245843,0.57358212,60844.0,60843.0,0.001636]
[1727982246075,0.56458212,60844.0,60843.0,0.001636]
[1727982246303,0.64916921,60844.0,60843.0,0.001636]
[1727982246551,0.55081109,60844.0,60843.0,0.001636]
[1727982246775,0.50232149,60844.0,60843.0,0.001636]
[1727982247211,0.51632149,60844.0,60843.0,0.001636]
[1727982247697,0.46775901,60844.0,60843.0,0.001636]
[1727982248459,0.51692698,60844.0,60843.0,0.001636]
[1727982248708,0.67951645,60844.0,60843.0,0.001636]
[1727982248923,0.75325616,60844.0,60843.0,0.001636]
[1727982249381,0.59006945,60844.0,60843.0,0.001636]
[1727982249625,0.61584026,60844.0,60843.0,0.001636]
[1727982249852,0.41492982,60844.0,60843.0,0.001636]
[1727982253447,0.38692982,60844.0,60843.0,0.001636]
[1727982253682,0.41492982,60844.0,60843.0,0.001636]
[1727982254352,0.41692982,60844.0,60843.0,0.001636]
[1727982254575,0.40092982,60844.0,60843.0,0.001636]
[1727982254812,0.40392982,60844.0,60843.0,0.001636]
[1727982255027,0.38992982,60844.0,60843.0,0.001636]
[1727982255483,0.39192982,60844.0,60843.0,0.001636]
[1727982255695,0.36615901,60844.0,60843.0,0.001636]
[1727982255925,0.36415901,60844.0,60843.0,0.001636]
[1727982256137,0.36815901,60844.0,60843.0,0.001636]
[1727982257389,0.20380501,60844.0,60843.0,0.18884294]
[1727982258044,0.09980501,60844.0,60843.0,0.18884294]
[1727982258261,0.20280501,60844.0,60843.0,0.35319994]
[1727982258505,0.20280501,60844.0,60843.0,0.18884294]
[1727982258722,0.19980501,60844.0,60843.0,0.18884294]
[1727982258940,0.19980501,60844.0,60843.0,0.18984294]
[1727982259398,0.103,60844.0,60843.0,0.18984294]
[1727982260056,0.1,60844.0,60843.0,0.18984294]
[1727982260762,0.103,60844.0,60843.0,0.18984294]
[1727982261207,0.003,60844.0,60843.0,0.18984294]